Cogmind - Beta 13 @@@ ROGUE MODE // 2024.04.23 @ 13:06:04 Player: DONGSPRAYER9000 Result: Destroyed by G-47 Trooper with Particle Gun Performance ------------- Evolutions (0) 0 Regions Visited (2) 400 Robots Destroyed (12) 60 Value Destroyed (293) 293 Prototype IDs (0) 0 Alien Tech Used (0) 0 Bonus (0) 0 TOTAL SCORE: 753 Bonus ------- None Cogmind --------- Core Integrity 0/250 Matter 280/300 Energy 249/250 System Corruption 0% Temperature Cool (11) Movement Flying (37) Location -10/Mines Parts ------- > --- POWER (1) -------- Ion Engine > --- PROPULSION (2) --- Flight Unit Flight Unit > --- UTILITY (2) ------ (None) > --- WEAPON (2) ------- Light Assault Rifle > --- INVENTORY (5) ---- Medium Matter Pod (65) Peak State ------------ > --- POWER ------------ Light Ion Engine > --- PROPULSION ------- Aluminum Leg Aluminum Leg > --- UTILITY ---------- Medium Storage Unit Medium Matter Pod > --- WEAPON ----------- Medium Laser Light Assault Rifle > --- INVENTORY -------- Grenade Launcher [Rating: 7] Favorites ----------- Power Light Ion Engine Engine Light Ion Engine Propulsion Aluminum Leg Leg Aluminum Leg Flight Unit Flight Unit Utility Medium Matter Pod Storage Medium Matter Pod Weapon Light Assault Rifle Energy Gun Medium Laser Ballistic Gun Light Assault Rifle Launcher Grenade Launcher Build | -11 -10 -10 ------- Run | Yrd Mat Min Slots Evolved . | . . . Power . | . . . Propulsion . | . . . Utility . | . . . Weapon . | . . . Parts Attached 19 | 6 11 2 Power 2 | 1 1 . Engine 2 | 1 1 . Core . | . . . Reactor . | . . . Propulsion 8 | 2 4 2 Treads . | . . . Leg 4 | 2 2 . Wheel . | . . . Hover . | . . . Flight 4 | . 2 2 Utility 2 | 1 1 . Device . | . . . Storage 2 | 1 1 . Processor . | . . . Hackware . | . . . Protection . | . . . Artifact . | . . . Weapon 7 | 2 5 . Energy Gun 2 | 1 1 . Energy Cannon . | . . . Ballistic Gun 2 | 1 1 . Ballistic Cannon . | . . . Launcher 3 | . 3 . Special Weapon . | . . . Impact Weapon . | . . . Slashing Weapon . | . . . Piercing Weapon . | . . . Special Melee Weapon . | . . . Unidentified Prototypes . | . . . Parts Lost 2 | . 2 . Power 1 | . 1 . Propulsion . | . . . Utility . | . . . Weapon 1 | . 1 . Highest Loss Streak 2 | . 2 . To Critical Strikes . | . . . Average Slot Usage (%) 79 | . 83 45 Engine 13 | . 13 14 Leg 16 | . 18 . Flight 7 | . 6 17 Storage 17 | . 19 . Energy Gun 4 | . 5 . Ballistic Gun 14 | . 14 14 Launcher 4 | . 4 . Naked Turns . | . . . Heaviest Build 21 | 8 21 6 Greatest Support 20 | 20 20 8 Greatest Overweight (x) 5 | . 5 1 Average Overweight (x) . | . . . Largest Inventory Capacity 10 | 5 10 5 Average Capacity 6 | 5 7 5 Most Carried 3 | 2 3 2 Average Carried . | . 1 1 Final Capacity 5 | 5 5 5 Final Carried 3 | . 3 1 Class Distribution -------------------- 100% | Mutant Dominant Class ---------------- Mutant | -10/Materials Mutant | -10/Mines Resources | -11 -10 -10 ----------- Run | Yrd Mat Min Matter Collected 455 | 326 129 . Remotely . | . . . Salvage Created 240 | 75 165 . Parts 23 | 4 19 . Haulers Intercepted . | . . . Recyclers Shooed . | . . . Parts Field Recycled . | . . . Retrieved Matter . | . . . Parts Self-Destructed . | . . . Prevented . | . . . Kills | -11 -10 -10 ------- Run | Yrd Mat Min Combat Hostiles Destroyed 10 | 1 9 . Guns 1 | 1 . . AOE 9 | . 9 . Classes Destroyed 3 | 2 1 . Worker 2 | 1 1 . Swarmer 3 | . 3 . Grunt 7 | 1 6 . Best Kill Streak 4 | 1 4 . Combat Bots Only 4 | 1 4 . Max Kills in Single Turn 4 | 1 4 . Gunslinging . | . . . Exploded 4 | . 4 . Melee . | . . . Uniques/NPCs Destroyed . | . . . Combat | -11 -10 -10 -------- Run | Yrd Mat Min Hostile Shots Fired 79 | 4 67 8 Missed 26 | 2 21 3 Damage Taken 718 | 22 625 71 Core 254 | . 197 57 Absorbed by Shields . | . . . Core Remaining (%) 100 | 100 . . Volleys Fired 22 | 8 14 . Largest 2 | 2 2 . Hottest 70 | 70 70 . Shots Fired 43 | 16 27 . Gun 38 | 16 22 . Cannon . | . . . Launcher 5 | . 5 . Special . | . . . Kinetic 22 | 8 14 . Thermal 16 | 8 8 . Explosive 5 | . 5 . Electromagnetic . | . . . Robot Hit Streak 10 | 10 5 . Robot Miss Streak 2 | 2 1 . Penetration Max . | . . . Secondary Targets . | . . . Shots Hit Robots 24 | 11 13 . Core Hits 20 | 4 16 . Critical Kills . | . . . Critical Parts Destroyed . | . . . Critical Strikes 1 | 1 . . Burn 1 | 1 . . Melee Attacks . | . . . Impact . | . . . Slashing . | . . . Piercing . | . . . Sneak Attacks . | . . . Combat Hostiles . | . . . Follow-up Attacks . | . . . Damage Inflicted 663 | 115 548 . Guns 148 | 115 33 . Cannons . | . . . Explosions 515 | . 515 . Melee . | . . . Ramming . | . . . Kinetic 62 | 41 21 . Thermal 86 | 74 12 . Explosive 515 | . 515 . Electromagnetic . | . . . Impact . | . . . Slashing . | . . . Piercing . | . . . Highest Corruption . | . . . Average Corruption . | . . . Corruption Purged . | . . . Corruption Blocked . | . . . Overload Shots . | . . . Overflow Damage . | . . . Projectiles . | . . . Explosions . | . . . Melee . | . . . Knockbacks . | . . . Impact . | . . . Kinetic . | . . . Secondary . | . . . Self-Inflicted Damage 66 | . 66 . Shots 2 | . 2 . Rammed . | . . . Targets Rammed . | . . . Kicked . | . . . Crushed . | . . . Highest Temperature 128 | 112 128 . Average Temperature 52 | 51 53 . Received Heat Transfer 351 | 12 300 39 Siege Activations . | . . . Robots Corrupted . | . . . Combat Hostiles . | . . . Parts Fried . | . . . Impact Corruptions . | . . . Robots Melted . | . . . Combat Hostiles . | . . . Parts Melted 1 | 1 . . Heat Transferred 333 | 296 37 . Parts Sabotaged . | . . . Parts Stolen . | . . . Parts Stripped . | . . . Power Chain Reactions . | . . . Alert | -11 -10 -10 ------- Run | Yrd Mat Min Peak Influence 263 | 25 263 102 Initial 102 | . 16 102 Average 122 | 5 167 98 Maximum Alert Level 1 | . 1 . Low Security (%) 68 | 100 52 100 Level 1 31 | . 47 . Level 2 . | . . . Level 3 . | . . . Level 4 . | . . . Level 5 . | . . . High Security . | . . . Max Security . | . . . Squads Dispatched 2 | . 2 . Investigation 1 | . 1 . Extermination . | . . . Reinforcement 1 | . 1 . Assault . | . . . Garrison . | . . . Intercept . | . . . Searches Triggered . | . . . Construction Impeded . | . . . Haulers Reinforced . | . . . Active Scanning Responses . | . . . Cargo Convoy Interrupts . | . . . Stealth | -11 -10 -10 --------- Run | Yrd Mat Min Distress Signals . | . . . Communications Jammed . | . . . Distress Signals . | . . . Times Spotted 16 | 1 12 3 Peak Tracking Total 5 | 1 5 4 Tactical Retreats . | . . . Traps | -11 -10 -10 ------- Run | Yrd Mat Min Traps Triggered 1 | . 1 . Indirectly . | . . . Trap Hack Attempts . | . . . Triggered . | . . . Disarmed . | . . . Reprogrammed . | . . . Reused . | . . . Traps Extracted . | . . . Installed . | . . . Triggered . | . . . Machines | -11 -10 -10 ---------- Run | Yrd Mat Min Machines Disabled 1 | . 1 . Max in Single Turn 1 | . 1 . Machines Repaired . | . . . Machines Dismantled . | . . . Machines Sabotaged . | . . . Overloaded Fab Kills . | . . . Hacking | -11 -10 -10 --------- Run | Yrd Mat Min Machines Accessed 3 | . 3 . Terminals 1 | . 1 . Fabricators . | . . . Repair Stations 1 | . 1 . Recycling Units 1 | . 1 . Scanalyzers . | . . . Garrison Access . | . . . Total Hacks 6 | . 6 . Successful 4 | . 4 . Failed 2 | . 2 . Catastrophic . | . . . Database Lockouts . | . . . Manual 1 | . 1 . Terminals 1 | . 1 . Fabricators . | . . . Repair Stations 4 | . 4 . Recycling Units 1 | . 1 . Scanalyzers . | . . . Garrison Access . | . . . Terminal Hacks 1 | . 1 . Hauler Manifests 1 | . 1 . Fabricator Hacks . | . . . Repair Station Hacks 2 | . 2 . Scan Component 2 | . 2 . Recycling Unit Hacks 1 | . 1 . Process 1 | . 1 . Scanalyzer . | . . . Garrison Access Hacks . | . . . Unauthorized Hacks . | . . . Terminals . | . . . Fabricators . | . . . Repair Stations . | . . . Recycling Units . | . . . Scanalyzers . | . . . Garrison Access . | . . . Data Cores Recovered . | . . . Used . | . . . Hacking Detections 1 | . 1 . Full Trace Events 1 | . 1 . Feedback Events . | . . . Feedback Blocked . | . . . Robot Schematics Acquired . | . . . Robots Built . | . . . Authchips . | . . . Time . | . . . Total Robot Build Rating . | . . . Part Schematics Acquired . | . . . Parts Built . | . . . Authchips . | . . . Time . | . . . Total Part Build Rating . | . . . Parts Repaired . | . . . Time . | . . . Parts Recycled . | . . . Recycled Matter 33 | . 33 . Retrieved Matter . | . . . Retrieved Components . | . . . Parts Scanalyzed . | . . . Part Schematics Acquired . | . . . Parts Damaged . | . . . Bothacking | -11 -10 -10 ------------ Run | Yrd Mat Min Used RIF Installer . | . . . Robots Hacked . | . . . Non-combat . | . . . Combat . | . . . Robot Hacks Applied . | . . . Relay Couplers Released . | . . . Fabnet Peak Effective % . | . . . Robots Rewired . | . . . Allies Hacked . | . . . Hacks Repelled . | . . . Allies | -11 -10 -10 -------- Run | Yrd Mat Min Total Allies 1 | . . 1 Largest Group 1 | . . 1 Highest-Rated Group 31 | . . 31 Highest-Rated Ally 31 | . . 31 Total Orders . | . . . Ally Attacks 1 | . . 1 Total Damage 21 | . . 21 Kills . | . . . Allies Corrupted . | . . . Allies Melted . | . . . Intel | -11 -10 -10 ------- Run | Yrd Mat Min Robot Analysis Total . | . . . Derelict Logs Recovered . | . . . Drone Launches . | . . . Drone Recoveries . | . . . Exploration | -11 -10 -10 ------------- Run | Yrd Mat Min Turns Passed 503 | 124 339 40 Spaces Moved 377 | 87 249 41 Core 23 | 23 . . Treads . | . . . Legs 187 | 64 123 . Wheels . | . . . Hover . | . . . Flight 167 | . 126 41 Fastest Speed 37 | 50 37 37 Average Speed 103 | 101 108 81 Slowest Speed 450 | 120 450 120 Overloaded Moves . | . . . Propulsion Burnouts . | . . . Robots Hopped . | . . . Cave-ins Triggered . | . . . Exploration Rate (%) 18 | 5 37 14 Regions Visited 2 Branch Regions 1 Pre-discovered Areas . | . . . Known Exits Taken . | . . . Unknown Exits Taken 2 | 1 1 . Scrap Searched . | . . . Spaces Dug . | . . . Terrain Destroyed 31 | . 31 . Melee . | . . . Projectile . | . . . AOE 31 | . 31 . Terrain Rammed . | . . . Walls Destroyed . | . . . Machines Disabled . | . . . Actions | -11 -10 -10 --------- Run | Yrd Mat Min Total 455 | 109 298 48 Wait 1 | 1 . . Move 375 | 86 248 41 Hop . | . . . Pick Up 20 | 7 11 2 Fast Attach . | . . . Attach 12 | 6 5 1 Detach 5 | . 5 . Swap 7 | . 6 1 Drop 13 | 1 9 3 Fire 22 | 8 14 . Melee . | . . . Ram . | . . . Kick . | . . . Crush . | . . . Escape Stasis . | . . . Rewire . | . . . Trap . | . . . Miscellaneous . | . . . Route ------- -11/Scrapyard -10/Materials -10/Mines History --------- Turn | Location | Event 2 | -11/Scrapyard | Met Revision 17 93 | -11/Scrapyard | Discovered new exit (range 8) 125 | -11/Scrapyard | Entered Materials 268 | -10/Materials | Core integrity fell below 50% 313 | -10/Materials | Build established: Mutant 457 | -10/Materials | Discovered new exit (range 7) 464 | -10/Materials | Entered Mines 471 | -10/Mines | Assembled infested the area 479 | -10/Mines | Escorted by a lone wolf Derelict 491 | -10/Mines | Core integrity fell below 20% 504 | -10/Mines | Destroyed by G-47 Trooper with Particle Gun Last Messages --------------- Ready to Repair: Broken Flight Unit Rating: 1 Time: 36 K-01 Serf cleans the Material Processor. EXIT=FOUND K-01 Serf cleans the Pressure Siphon. LOCATION=UNKNOWN GOAL=ESCAPE Something is scanning the area. Dropped Broken Flight Unit. Dropped Grenade Launcher. ALERT: Infestation in the mines, dispatching Demolisher response squad. JC-TLP(g): "Well, at least you make a good diversion. I'll return the favor and help see you out of these parts." Move into an ally to swap places with them. Acquired Flight Unit. Dropped Flight Unit. Map ----- +----------------------------------------------------+ | ???????????????????????????????????????????? | | ???????????????????????????????????????????? | | ???????????????????????????????????????????? | | ???????????????????????????????????????????? | | ???????????????????????????????????????????? | | ???????????????????????????????????????????? | | ???????????????????????????????????????????? | | ???????????????????????????????????????????? | | ???????????????????### ###?????????????????? | | ???????????????????# ????????????????? | | ???????????????????? ????####???????? | | ?????????????????????? #### ##??????? | | ???????????????????????" """ #??????? | | ???????????????????????" """ ##?????? | | ???????????????????????" """ ### ##????? | | ???????????????????????????????# ##???? | | ???????????????????????????????## #???? | | ????????????????????????????????## #???? | | ?????????????????????????????????# =]##??? | | ?????????????????????????????????# #??? | | ???????????????????####??????????# #??? | | ???????????????????# #?????????#[ ##??? | | ???????????????????# #???######% #???? | | ???????????????????# #### ##g ##??? | | ????????????????????# ## g #??? | | ???????????????????## """@ #??? | | ???????????????????# """ #??? | | ???????????????????# """ #??? | | ???????????????????## ##### ## #??? | | ????????????????????########??## ### #?? | | ????????????????????????????###= #?? #?? | | ???????????????????????????##*%=% #??# ##?? | | ???????????????????????????# =[%[ #???###??? | | ???????????????????????????# ##????????? | | ???????????????????????????## ##?????????? | | ????????????????????????????#####??????????? | | ???????????????????????????????????????????? | | ???????????????????????????????????????????? | | ???????????????????????????????????????????? | | ???????????????????????????????????????????? | | ???????????????????????????????????????????? | | ???????????????????????????????????????????? | | ???????????????????????????????????????????? | | ???????????????????????????????????????????? | | ???????????????????????????????????????????? | | ???????????????????????????????????????????? | | ???????????????????????????????????????????? | | | | | | | +----------------------------------------------------+ Best States ------------- Heat Dissipation 25 Energy Generation 10 Energy Capacity 250 Matter Stores 400 Matter Capacity 400 Sight Range 16 Terrain Scan Density 10 Evasion (%) 62 Item Schematics ----------------- None Robot Schematics ------------------ None Fabricated ------------ Nothing Alien Tech Used ----------------- None Achievements -------------- Crack Shot Shopping List Challenges ------------ None Game ------ Seed HardcellAntimatterProcessor Manual? 0 Play Time 00:18:44 Cumulative 0.4 hours Start 2024.04.23 @ 11:03:53 End 2024.04.23 @ 13:06:04 Sessions 1 Manual Loads 0 Difficulty Rogue Special Mode None Game No. 2 Rogue 2 Adventurer 0 Explorer 0 Win Type - Total 0 Types 0/0/0/0/0/0/0/0/0 Lore% 0 Gallery% 1 Achievement% 1 Wizard Run 0 Options --------- Layout 1 ASCII 0 Keyboard 0 Movement Numpad Keybinds 0 Fullscreen 2 Font 24/Smallcaps Map View 50x35 Zoom Use 0% Tactical HUD 0 Map Filters NONE Filters NONE Steam 1 RUN: 77c72c86-48e4-4567-a8c2-2bdf622e17a2